[Event "Titled Tuesday Blitz July 20 2021"]
[White "Adelman, Charles"]
[Black "Gelman, Alexander"]
[WhiteFideId "2003597"]
[BlackFideId "4118316"]
[WhiteElo "2340"]
[BlackElo "2375"]
[Result "0-1"]
[Round "02"]
[TimeControl "180+1"]
[Date "2021.07.21"]
[WhiteClock "0:01:21"]
[BlackClock "0:02:00"]

1. Nf3 {[%clk 0:03:00]}  c5 {[%clk 0:02:58]} 2. c4 {[%clk 0:03:00]}  Nf6 {[%clk 0:02:58]} 3. Nc3 {[%clk 0:03:00]}  e6 {[%clk 0:02:59]} 4. g3 {[%clk 0:02:59]}  d6 {[%clk 0:02:59]} 5. Bg2 {[%clk 0:02:59]}  a6 {[%clk 0:02:59]} 6. O-O {[%clk 0:02:59]}  Be7 {[%clk 0:03:00]} 7. d4 {[%clk 0:02:57]}  cxd4 {[%clk 0:03:00]} 8. Nxd4 {[%clk 0:02:57]}  Qc7 {[%clk 0:03:01]} 9. b3 {[%clk 0:02:56]}  O-O {[%clk 0:03:01]} 10. Bb2 {[%clk 0:02:56]}  Nbd7 {[%clk 0:03:02]} 11. Rc1 {[%clk 0:02:55]}  Ne5 {[%clk 0:03:02]} 12. h3 {[%clk 0:02:50]}  Bd7 {[%clk 0:03:03]} 13. f4 {[%clk 0:02:49]}  Ng6 {[%clk 0:03:03]} 14. e4 {[%clk 0:02:48]}  Rac8 {[%clk 0:03:03]} 15. Qd2 {[%clk 0:02:45]}  Qb8 {[%clk 0:03:02]} 16. g4 {[%clk 0:02:33]}  h6 {[%clk 0:03:01]} 17. Rfe1 {[%clk 0:02:28]}  b5 {[%clk 0:02:56]} 18. cxb5 {[%clk 0:02:25]}  axb5 {[%clk 0:02:57]} 19. a3 {[%clk 0:02:02]}  b4 {[%clk 0:02:39]} 20. axb4 {[%clk 0:02:01]}  Qxb4 {[%clk 0:02:40]} 21. e5 {[%clk 0:01:57]}  dxe5 {[%clk 0:02:31]} 22. fxe5 {[%clk 0:01:56]}  Bc5 {[%clk 0:02:27]} 23. exf6 {[%clk 0:01:40]}  Qxd4+ {[%clk 0:02:08]} 24. Qxd4 {[%clk 0:01:39]}  Bxd4+ {[%clk 0:02:09]} 25. Kh1 {[%clk 0:01:38]}  Bxf6 {[%clk 0:02:10]} 26. Rcd1 {[%clk 0:01:32]}  Bxc3 {[%clk 0:02:04]} 27. Bxc3 {[%clk 0:01:29]}  Rxc3 {[%clk 0:02:05]} 28. Rxd7 {[%clk 0:01:29]}  Rxb3 {[%clk 0:02:06]} 29. Rc1 {[%clk 0:01:27]}  Nf4 {[%clk 0:02:03]} 30. Rc2 {[%clk 0:01:21]}  Nxh3 {[%clk 0:02:00]} 0-1


[Site "https://www.chess.com"]

[Event "Titled Tuesday Blitz July 20 2021"]
[White "Ahmadzada, Ahmad"]
[Black "Silich, Yahor"]
[WhiteFideId "13413007"]
[BlackFideId "13513656"]
[WhiteElo "2226"]
[BlackElo "2142"]
[Result "0-1"]
[Round "02"]
[TimeControl "180+1"]
[Date "2021.07.20"]
[WhiteClock "0:00:02"]
[BlackClock "0:00:12"]

1. Nf3 {[%clk 0:03:00]}  Nf6 {[%clk 0:02:59]} 2. g3 {[%clk 0:03:00]}  g6 {[%clk 0:03:00]} 3. Bg2 {[%clk 0:03:01]}  Bg7 {[%clk 0:03:00]} 4. O-O {[%clk 0:03:01]}  O-O {[%clk 0:03:00]} 5. d3 {[%clk 0:03:01]}  d5 {[%clk 0:03:00]} 6. b3 {[%clk 0:03:01]}  c5 {[%clk 0:02:57]} 7. Bb2 {[%clk 0:03:00]}  d4 {[%clk 0:02:57]} 8. e4 {[%clk 0:02:51]}  Nc6 {[%clk 0:02:56]} 9. Nbd2 {[%clk 0:02:51]}  e5 {[%clk 0:02:54]} 10. a4 {[%clk 0:02:50]}  Ne8 {[%clk 0:02:54]} 11. Nc4 {[%clk 0:02:49]}  Nd6 {[%clk 0:02:54]} 12. Nfd2 {[%clk 0:02:48]}  Be6 {[%clk 0:02:52]} 13. Nxd6 {[%clk 0:02:46]}  Qxd6 {[%clk 0:02:52]} 14. Nc4 {[%clk 0:02:47]}  Qc7 {[%clk 0:02:49]} 15. Bc1 {[%clk 0:02:44]}  a6 {[%clk 0:02:47]} 16. f4 {[%clk 0:02:42]}  b5 {[%clk 0:02:28]} 17. f5 {[%clk 0:02:38]}  bxc4 {[%clk 0:02:11]} 18. fxe6 {[%clk 0:02:37]}  fxe6 {[%clk 0:02:11]} 19. bxc4 {[%clk 0:02:29]}  Rxf1+ {[%clk 0:02:09]} 20. Bxf1 {[%clk 0:02:29]}  Rf8 {[%clk 0:02:00]} 21. Bh3 {[%clk 0:02:17]}  Qf7 {[%clk 0:01:59]} 22. Qe2 {[%clk 0:02:11]}  h5 {[%clk 0:01:56]} 23. Bg5 {[%clk 0:02:08]}  Kh7 {[%clk 0:01:53]} 24. Rf1 {[%clk 0:02:00]}  Qe8 {[%clk 0:01:53]} 25. Rxf8 {[%clk 0:01:54]}  Bxf8 {[%clk 0:01:54]} 26. g4 {[%clk 0:01:55]}  Bh6 {[%clk 0:01:50]} 27. Bxh6 {[%clk 0:01:20]}  Kxh6 {[%clk 0:01:51]} 28. Qd2+ {[%clk 0:01:20]}  g5 {[%clk 0:01:47]} 29. gxh5 {[%clk 0:01:19]}  Qxh5 {[%clk 0:01:42]} 30. Bxe6 {[%clk 0:01:16]}  Qf3 {[%clk 0:01:39]} 31. Bd5 {[%clk 0:00:46]}  Nb4 {[%clk 0:01:25]} 32. a5 {[%clk 0:00:44]}  Qg4+ {[%clk 0:01:13]} 33. Kf2 {[%clk 0:00:28]}  Qh4+ {[%clk 0:01:05]} 34. Kf1 {[%clk 0:00:27]}  Qf4+ {[%clk 0:01:02]} 35. Ke1 {[%clk 0:00:26]}  Qh4+ {[%clk 0:00:47]} 36. Kd1 {[%clk 0:00:25]}  Na2 {[%clk 0:00:44]} 37. c3 {[%clk 0:00:08]}  Nxc3+ {[%clk 0:00:40]} 38. Kc2 {[%clk 0:00:05]}  Qf4 {[%clk 0:00:28]} 39. Bb7 {[%clk 0:00:03]}  Qf1 {[%clk 0:00:27]} 40. Kb3 {[%clk 0:00:03]}  Qb1+ {[%clk 0:00:24]} 41. Qb2 {[%clk 0:00:03]}  Qxd3 {[%clk 0:00:25]} 42. Qc2 {[%clk 0:00:04]}  Qf1 {[%clk 0:00:20]} 43. Bxa6 {[%clk 0:00:03]}  Qa1 {[%clk 0:00:21]} 44. h4 {[%clk 0:00:01]}  Qxa5 {[%clk 0:00:14]} 45. hxg5+ {[%clk 0:00:01]}  Kg6 {[%clk 0:00:14]} 46. Qf2 {[%clk 0:00:01]}  Qb4+ {[%clk 0:00:11]} 47. Kc2 {[%clk 0:00:01]}  Qb1+ {[%clk 0:00:12]} 48. Kd2 {[%clk 0:00:02]}  Qb2+ {[%clk 0:00:12]} 49. Ke1 {[%clk 0:00:02]}  Qc1# {[%clk 0:00:12]} 0-1


[Site "https://www.chess.com"]

[Event "Titled Tuesday Blitz July 20 2021"]
[White "Altman, Joshua"]
[Black "Tin, Jingyao"]
[WhiteFideId "426210"]
[BlackFideId "5804418"]
[WhiteElo "1945"]
[BlackElo "2374"]
[Result "0-1"]
[Round "02"]
[TimeControl "180+1"]
[Date "2021.07.21"]
[WhiteClock "0:00:07"]
[BlackClock "0:00:08"]

1. d4 {[%clk 0:03:00]}  Nf6 {[%clk 0:02:59]} 2. c4 {[%clk 0:03:01]}  e6 {[%clk 0:02:59]} 3. Nf3 {[%clk 0:03:01]}  d5 {[%clk 0:02:59]} 4. cxd5 {[%clk 0:03:01]}  exd5 {[%clk 0:02:59]} 5. Nc3 {[%clk 0:03:00]}  c6 {[%clk 0:02:59]} 6. Bg5 {[%clk 0:03:00]}  Bf5 {[%clk 0:02:57]} 7. e3 {[%clk 0:03:01]}  Be7 {[%clk 0:02:57]} 8. Bd3 {[%clk 0:03:01]}  Bxd3 {[%clk 0:02:56]} 9. Qxd3 {[%clk 0:03:02]}  O-O {[%clk 0:02:55]} 10. O-O {[%clk 0:03:02]}  Nbd7 {[%clk 0:02:55]} 11. Rab1 {[%clk 0:03:02]}  h6 {[%clk 0:02:49]} 12. Bh4 {[%clk 0:03:00]}  Ne4 {[%clk 0:02:48]} 13. Bxe7 {[%clk 0:02:58]}  Qxe7 {[%clk 0:02:49]} 14. Nd2 {[%clk 0:02:58]}  Nd6 {[%clk 0:02:47]} 15. b4 {[%clk 0:02:57]}  b5 {[%clk 0:02:15]} 16. a4 {[%clk 0:02:46]}  a6 {[%clk 0:02:15]} 17. a5 {[%clk 0:02:43]}  Rfe8 {[%clk 0:02:12]} 18. Nb3 {[%clk 0:02:39]}  Nc4 {[%clk 0:02:09]} 19. Nc5 {[%clk 0:02:34]}  Nxc5 {[%clk 0:02:08]} 20. dxc5 {[%clk 0:02:34]}  Qe5 {[%clk 0:02:02]} 21. Ne2 {[%clk 0:02:25]}  Re6 {[%clk 0:01:58]} 22. Nd4 {[%clk 0:02:22]}  Rf6 {[%clk 0:01:55]} 23. Rbe1 {[%clk 0:02:16]}  Re8 {[%clk 0:01:53]} 24. Re2 {[%clk 0:02:11]}  h5 {[%clk 0:01:47]} 25. Rfe1 {[%clk 0:02:07]}  Qe4 {[%clk 0:01:19]} 26. Qxe4 {[%clk 0:01:57]}  Rxe4 {[%clk 0:01:20]} 27. f3 {[%clk 0:01:55]}  Re7 {[%clk 0:01:07]} 28. e4 {[%clk 0:01:49]}  dxe4 {[%clk 0:01:06]} 29. Rxe4 {[%clk 0:01:48]}  Rd7 {[%clk 0:01:06]} 30. Nc2 {[%clk 0:01:06]}  Rg6 {[%clk 0:00:53]} 31. Rd4 {[%clk 0:01:00]}  Rxd4 {[%clk 0:00:35]} 32. Nxd4 {[%clk 0:01:01]}  Kf8 {[%clk 0:00:36]} 33. Nf5 {[%clk 0:00:38]}  Rf6 {[%clk 0:00:32]} 34. Nd4 {[%clk 0:00:32]}  Nb2 {[%clk 0:00:21]} 35. Re5 {[%clk 0:00:24]}  Nd3 {[%clk 0:00:18]} 36. Rxh5 {[%clk 0:00:22]}  Nxb4 {[%clk 0:00:19]} 37. Rh8+ {[%clk 0:00:22]}  Ke7 {[%clk 0:00:20]} 38. Rb8 {[%clk 0:00:15]}  Rf4 {[%clk 0:00:19]} 39. Rb7+ {[%clk 0:00:11]}  Ke8 {[%clk 0:00:19]} 40. Ne2 {[%clk 0:00:10]}  Rc4 {[%clk 0:00:18]} 41. Rb8+ {[%clk 0:00:09]}  Ke7 {[%clk 0:00:17]} 42. Rb7+ {[%clk 0:00:09]}  Kf6 {[%clk 0:00:17]} 43. Ng3 {[%clk 0:00:08]}  Ke6 {[%clk 0:00:16]} 44. Ne4 {[%clk 0:00:08]}  f5 {[%clk 0:00:09]} 45. Nd6 {[%clk 0:00:08]}  Rxc5 {[%clk 0:00:09]} 46. Ne8 {[%clk 0:00:07]}  Nd3 {[%clk 0:00:08]} 47. Nxg7+ {[%clk 0:00:07]}  Kf6 {[%clk 0:00:09]} 48. Ne8+ {[%clk 0:00:08]}  Ke6 {[%clk 0:00:08]} 49. Ng7+ {[%clk 0:00:07]}  Ke5 {[%clk 0:00:07]} 50. Re7+ {[%clk 0:00:07]}  Kf6 {[%clk 0:00:08]} 51. Ra7 {[%clk 0:00:07]}  Rc1# {[%clk 0:00:08]} 0-1


[Site "https://www.chess.com"]

[Event "Titled Tuesday Blitz July 20 2021"]
[White "Atanasov, Anthony"]
[Black "Quparadze, Giga"]
[WhiteFideId "2623897"]
[BlackFideId "13602250"]
[WhiteElo "1889"]
[BlackElo "2658"]
[Result "1-0"]
[Round "02"]
[TimeControl "180+1"]
[Date "2021.07.20"]
[WhiteClock "0:00:11"]
[BlackClock "0:01:20"]

1. d4 {[%clk 0:03:00]}  Nf6 {[%clk 0:02:59]} 2. Bf4 {[%clk 0:02:59]}  e6 {[%clk 0:02:57]} 3. e3 {[%clk 0:02:59]}  c5 {[%clk 0:02:57]} 4. Nf3 {[%clk 0:03:00]}  b6 {[%clk 0:02:56]} 5. Nbd2 {[%clk 0:03:00]}  Bb7 {[%clk 0:02:53]} 6. Nc4 {[%clk 0:03:00]}  d5 {[%clk 0:02:51]} 7. Nce5 {[%clk 0:03:00]}  Nh5 {[%clk 0:02:48]} 8. Bb5+ {[%clk 0:02:43]}  Ke7 {[%clk 0:02:48]} 9. Nxf7 {[%clk 0:01:21]}  Kxf7 {[%clk 0:02:45]} 10. Ng5+ {[%clk 0:01:21]}  Kg8 {[%clk 0:02:45]} 11. Qxh5 {[%clk 0:01:20]}  g6 {[%clk 0:02:41]} 12. Qf3 {[%clk 0:01:20]}  Qe7 {[%clk 0:02:36]} 13. Bd6 {[%clk 0:01:17]}  Qg7 {[%clk 0:02:30]} 14. Nxe6 {[%clk 0:01:16]}  Qf7 {[%clk 0:02:30]} 15. Nxf8 {[%clk 0:00:41]}  a6 {[%clk 0:02:25]} 16. Be5 {[%clk 0:00:20]}  Qxf3 {[%clk 0:02:20]} 17. gxf3 {[%clk 0:00:20]}  axb5 {[%clk 0:02:20]} 18. Bxh8 {[%clk 0:00:20]}  Kxh8 {[%clk 0:02:19]} 19. Ne6 {[%clk 0:00:20]}  c4 {[%clk 0:02:10]} 20. Nc7 {[%clk 0:00:19]}  Ra5 {[%clk 0:02:10]} 21. b4 {[%clk 0:00:18]}  Ra4 {[%clk 0:02:04]} 22. c3 {[%clk 0:00:18]}  Bc6 {[%clk 0:02:01]} 23. Kd2 {[%clk 0:00:16]}  Kg7 {[%clk 0:02:00]} 24. Ne6+ {[%clk 0:00:16]}  Kf6 {[%clk 0:02:00]} 25. Nf4 {[%clk 0:00:17]}  g5 {[%clk 0:01:57]} 26. Ne2 {[%clk 0:00:17]}  Nd7 {[%clk 0:01:55]} 27. h4 {[%clk 0:00:17]}  Nf8 {[%clk 0:01:41]} 28. hxg5+ {[%clk 0:00:17]}  Kxg5 {[%clk 0:01:40]} 29. Rag1+ {[%clk 0:00:18]}  Kf6 {[%clk 0:01:40]} 30. Rh6+ {[%clk 0:00:17]}  Ng6 {[%clk 0:01:40]} 31. Nc1 {[%clk 0:00:15]}  Ra7 {[%clk 0:01:39]} 32. f4 {[%clk 0:00:15]}  Kg7 {[%clk 0:01:30]} 33. Rh5 {[%clk 0:00:13]}  Kf6 {[%clk 0:01:25]} 34. Rgh1 {[%clk 0:00:13]}  Be8 {[%clk 0:01:21]} 35. Rxh7 {[%clk 0:00:13]}  Bf7 {[%clk 0:01:22]} 36. Rg1 {[%clk 0:00:13]}  Nf8 {[%clk 0:01:20]} 37. Rh6+ {[%clk 0:00:12]}  Bg6 {[%clk 0:01:20]} 38. f3 {[%clk 0:00:12]}  Kg7 {[%clk 0:01:18]} 39. Rhxg6+ {[%clk 0:00:10]}  Nxg6 {[%clk 0:01:17]} 40. f5 {[%clk 0:00:11]}  Kf6 {[%clk 0:01:18]} 41. Rxg6+ {[%clk 0:00:10]}  Kxf5 {[%clk 0:01:18]} 42. Rxb6 {[%clk 0:00:11]}  Rh7 {[%clk 0:01:18]} 43. Ne2 {[%clk 0:00:11]}  Rh2 {[%clk 0:01:19]} 44. Rxb5 {[%clk 0:00:11]}  Ke6 {[%clk 0:01:19]} 45. Rc5 {[%clk 0:00:11]}  Kd6 {[%clk 0:01:18]} 46. e4 {[%clk 0:00:11]}  Rh1 {[%clk 0:01:19]} 47. Rxd5+ {[%clk 0:00:10]}  Ke6 {[%clk 0:01:19]} 48. Re5+ {[%clk 0:00:11]}  Kd6 {[%clk 0:01:19]} 49. Rc5 {[%clk 0:00:11]}  Ra1 {[%clk 0:01:19]} 50. Nc1 {[%clk 0:00:11]}  Rxa2+ {[%clk 0:01:20]} 51. Nxa2 {[%clk 0:00:11]} 1-0


[Site "https://www.chess.com"]

[Event "Titled Tuesday Blitz July 20 2021"]
[White "Babiy, Olga"]
[Black "Tristan, Leonardo"]
[WhiteFideId "14117258"]
[BlackFideId "113816"]
[WhiteElo "2459"]
[BlackElo "2720"]
[Result "0-1"]
[Round "02"]
[TimeControl "180+1"]
[Date "2021.07.21"]
[WhiteClock "0:00:05"]
[BlackClock "0:00:04"]

1. d4 {[%clk 0:03:00]}  d5 {[%clk 0:02:59]} 2. Bf4 {[%clk 0:03:00]}  Nf6 {[%clk 0:02:59]} 3. e3 {[%clk 0:03:01]}  e6 {[%clk 0:02:59]} 4. Nd2 {[%clk 0:03:01]}  Bd6 {[%clk 0:02:59]} 5. Ngf3 {[%clk 0:03:01]}  O-O {[%clk 0:02:59]} 6. c3 {[%clk 0:03:01]}  b6 {[%clk 0:02:59]} 7. Bd3 {[%clk 0:03:01]}  Bb7 {[%clk 0:03:00]} 8. Ne5 {[%clk 0:03:01]}  Nfd7 {[%clk 0:02:58]} 9. Qh5 {[%clk 0:02:56]}  f5 {[%clk 0:02:51]} 10. g4 {[%clk 0:02:53]}  Bxe5 {[%clk 0:02:30]} 11. dxe5 {[%clk 0:02:49]}  Nc5 {[%clk 0:02:27]} 12. Bc2 {[%clk 0:02:49]}  d4 {[%clk 0:02:27]} 13. exd4 {[%clk 0:02:40]}  Bxh1 {[%clk 0:02:25]} 14. dxc5 {[%clk 0:02:40]}  g6 {[%clk 0:02:24]} 15. Qh3 {[%clk 0:02:37]}  Be4 {[%clk 0:01:54]} 16. Bxe4 {[%clk 0:02:14]}  fxe4 {[%clk 0:01:54]} 17. Bh6 {[%clk 0:02:14]}  Rf7 {[%clk 0:01:37]} 18. Nxe4 {[%clk 0:02:07]}  Qd5 {[%clk 0:01:37]} 19. Nf6+ {[%clk 0:02:05]}  Rxf6 {[%clk 0:01:31]} 20. exf6 {[%clk 0:02:06]}  Nd7 {[%clk 0:01:04]} 21. Rd1 {[%clk 0:01:51]}  Qe4+ {[%clk 0:01:03]} 22. Qe3 {[%clk 0:01:32]}  Qxe3+ {[%clk 0:01:03]} 23. Bxe3 {[%clk 0:01:33]}  Nxf6 {[%clk 0:01:04]} 24. h3 {[%clk 0:01:22]}  Nd5 {[%clk 0:01:01]} 25. c4 {[%clk 0:01:10]}  Nf6 {[%clk 0:00:25]} 26. cxb6 {[%clk 0:00:55]}  axb6 {[%clk 0:00:24]} 27. a3 {[%clk 0:00:56]}  Ra4 {[%clk 0:00:18]} 28. Rc1 {[%clk 0:00:47]}  Ne4 {[%clk 0:00:18]} 29. Ke2 {[%clk 0:00:45]}  Kf7 {[%clk 0:00:15]} 30. Kd3 {[%clk 0:00:46]}  Nf6 {[%clk 0:00:14]} 31. Bf4 {[%clk 0:00:40]}  c6 {[%clk 0:00:11]} 32. Be3 {[%clk 0:00:26]}  Nd7 {[%clk 0:00:11]} 33. Kc3 {[%clk 0:00:23]}  b5 {[%clk 0:00:07]} 34. cxb5 {[%clk 0:00:20]}  cxb5 {[%clk 0:00:07]} 35. Kb3 {[%clk 0:00:20]}  Ke7 {[%clk 0:00:08]} 36. Rc6 {[%clk 0:00:20]}  Ra8 {[%clk 0:00:06]} 37. Rc7 {[%clk 0:00:19]}  Kd6 {[%clk 0:00:06]} 38. Rc1 {[%clk 0:00:18]}  Ne5 {[%clk 0:00:06]} 39. Rd1+ {[%clk 0:00:17]}  Kc6 {[%clk 0:00:05]} 40. Rc1+ {[%clk 0:00:18]}  Nc4 {[%clk 0:00:06]} 41. Kb4 {[%clk 0:00:17]}  Kd5 {[%clk 0:00:05]} 42. Kb3 {[%clk 0:00:13]}  Ke4 {[%clk 0:00:04]} 43. Rc3 {[%clk 0:00:13]}  Rf8 {[%clk 0:00:04]} 44. Bc5 {[%clk 0:00:13]}  Rc8 {[%clk 0:00:02]} 45. Kb4 {[%clk 0:00:13]}  Ne5 {[%clk 0:00:02]} 46. Kxb5 {[%clk 0:00:13]}  Rb8+ {[%clk 0:00:03]} 47. Ka4 {[%clk 0:00:09]}  Rxb2 {[%clk 0:00:03]} 48. Bb4 {[%clk 0:00:10]}  Kd5 {[%clk 0:00:03]} 49. f4 {[%clk 0:00:08]}  Nc4 {[%clk 0:00:03]} 50. Kb5 {[%clk 0:00:08]}  Nd6+ {[%clk 0:00:02]} 51. Ka5 {[%clk 0:00:07]}  Ne4 {[%clk 0:00:03]} 52. Rd3+ {[%clk 0:00:07]}  Kc4 {[%clk 0:00:04]} 53. Rd7 {[%clk 0:00:08]}  Rf2 {[%clk 0:00:03]} 54. Rc7+ {[%clk 0:00:08]}  Kd5 {[%clk 0:00:03]} 55. Rxh7 {[%clk 0:00:07]}  Rxf4 {[%clk 0:00:02]} 56. Rg7 {[%clk 0:00:08]}  g5 {[%clk 0:00:02]} 57. Kb5 {[%clk 0:00:08]}  Rf3 {[%clk 0:00:03]} 58. a4 {[%clk 0:00:08]}  Rxh3 {[%clk 0:00:03]} 59. a5 {[%clk 0:00:08]}  Rh1 {[%clk 0:00:04]} 60. a6 {[%clk 0:00:08]}  Ra1 {[%clk 0:00:05]} 61. Ba5 {[%clk 0:00:09]}  Nd6+ {[%clk 0:00:05]} 62. Kb6 {[%clk 0:00:08]}  Nc4+ {[%clk 0:00:05]} 63. Kc7 {[%clk 0:00:07]}  Rxa5 {[%clk 0:00:05]} 64. Rxg5+ {[%clk 0:00:07]}  e5 {[%clk 0:00:05]} 65. Rg6 {[%clk 0:00:06]}  e4 {[%clk 0:00:04]} 66. Rg5+ {[%clk 0:00:05]}  Ne5 {[%clk 0:00:04]} 67. Kb7 {[%clk 0:00:06]}  e3 {[%clk 0:00:04]} 68. a7 {[%clk 0:00:05]}  e2 {[%clk 0:00:04]} 0-1


[Site "https://www.chess.com"]

[Event "Titled Tuesday Blitz July 20 2021"]
[White "Bakalchuk, Johnatan"]
[Black "Walentukiewicz, Michal"]
[WhiteFideId "2810301"]
[BlackFideId "1126903"]
[WhiteElo "2507"]
[BlackElo "1974"]
[Result "1-0"]
[Round "02"]
[TimeControl "180+1"]
[Date "2021.07.21"]
[WhiteClock "0:01:55"]
[BlackClock "0:02:10"]

1. e4 {[%clk 0:03:00]}  g6 {[%clk 0:02:56]} 2. d4 {[%clk 0:03:00]}  Bg7 {[%clk 0:02:56]} 3. Nc3 {[%clk 0:03:01]}  c5 {[%clk 0:02:57]} 4. Be3 {[%clk 0:03:01]}  cxd4 {[%clk 0:02:57]} 5. Bxd4 {[%clk 0:03:02]}  Nf6 {[%clk 0:02:58]} 6. e5 {[%clk 0:03:03]}  Ng8 {[%clk 0:02:58]} 7. Nf3 {[%clk 0:03:03]}  Nc6 {[%clk 0:02:58]} 8. Bc4 {[%clk 0:03:01]}  Nxd4 {[%clk 0:02:57]} 9. Qxd4 {[%clk 0:03:02]}  Nh6 {[%clk 0:02:56]} 10. O-O-O {[%clk 0:03:02]}  O-O {[%clk 0:02:56]} 11. Kb1 {[%clk 0:02:59]}  d6 {[%clk 0:02:53]} 12. Qf4 {[%clk 0:02:35]}  Nf5 {[%clk 0:02:43]} 13. g4 {[%clk 0:02:32]}  dxe5 {[%clk 0:02:32]} 14. Bxf7+ {[%clk 0:02:02]}  Kxf7 {[%clk 0:02:22]} 15. Qc4+ {[%clk 0:01:58]}  Be6 {[%clk 0:02:10]} 16. Ng5+ {[%clk 0:01:57]}  Kf6 {[%clk 0:02:10]} 17. Nce4# {[%clk 0:01:55]} 1-0


[Site "https://www.chess.com"]

[Event "Titled Tuesday Blitz July 20 2021"]
[White "Bashirli, Saadat"]
[Black "Yanchenko, Roman"]
[WhiteFideId "13429990"]
[BlackFideId "4137329"]
[WhiteElo "1153"]
[BlackElo "2514"]
[Result "0-1"]
[Round "02"]
[TimeControl "180+1"]
[Date "2021.07.21"]
[WhiteClock "0:01:01"]
[BlackClock "0:02:00"]

1. d4 {[%clk 0:03:00]}  d5 {[%clk 0:02:52]} 2. Bg5 {[%clk 0:02:57]}  Bf5 {[%clk 0:02:51]} 3. Nf3 {[%clk 0:02:45]}  c6 {[%clk 0:02:51]} 4. c4 {[%clk 0:02:45]}  Qb6 {[%clk 0:02:51]} 5. Qb3 {[%clk 0:02:41]}  dxc4 {[%clk 0:02:50]} 6. Qxb6 {[%clk 0:02:40]}  axb6 {[%clk 0:02:51]} 7. Nc3 {[%clk 0:02:39]}  b5 {[%clk 0:02:51]} 8. e4 {[%clk 0:02:39]}  Bg6 {[%clk 0:02:51]} 9. Be2 {[%clk 0:02:30]}  e6 {[%clk 0:02:50]} 10. O-O {[%clk 0:02:25]}  Nd7 {[%clk 0:02:45]} 11. b3 {[%clk 0:02:13]}  Bb4 {[%clk 0:02:43]} 12. Rfc1 {[%clk 0:02:08]}  Bxc3 {[%clk 0:02:22]} 13. Rxc3 {[%clk 0:02:06]}  cxb3 {[%clk 0:02:22]} 14. Rxb3 {[%clk 0:02:07]}  Bxe4 {[%clk 0:02:22]} 15. Nd2 {[%clk 0:02:07]}  Bd5 {[%clk 0:02:22]} 16. Rb2 {[%clk 0:02:03]}  Ngf6 {[%clk 0:02:22]} 17. a4 {[%clk 0:02:00]}  O-O {[%clk 0:02:20]} 18. a5 {[%clk 0:01:58]}  h6 {[%clk 0:02:17]} 19. Bf4 {[%clk 0:01:55]}  Nb6 {[%clk 0:02:16]} 20. Bd6 {[%clk 0:01:46]}  Rfc8 {[%clk 0:02:14]} 21. f3 {[%clk 0:01:28]}  Na4 {[%clk 0:02:13]} 22. Rc2 {[%clk 0:01:24]}  Rxa5 {[%clk 0:02:12]} 23. Bb4 {[%clk 0:01:17]}  Raa8 {[%clk 0:02:11]} 24. Nf1 {[%clk 0:01:11]}  Nb6 {[%clk 0:02:03]} 25. Rxa8 {[%clk 0:01:07]}  Rxa8 {[%clk 0:02:04]} 26. Ne3 {[%clk 0:01:06]}  Ra1+ {[%clk 0:02:02]} 27. Kf2 {[%clk 0:01:06]}  Nc4 {[%clk 0:01:59]} 28. Nxc4 {[%clk 0:00:59]}  Bxc4 {[%clk 0:01:59]} 29. Bxc4 {[%clk 0:01:00]}  bxc4 {[%clk 0:02:00]} 30. Rxc4 {[%clk 0:01:01]}  Ra4 {[%clk 0:02:00]} 0-1


[Site "https://www.chess.com"]

[Event "Titled Tuesday Blitz July 20 2021"]
[White "Bethke, Richard"]
[Black "Liyanage, Ranindu Dilshan"]
[WhiteFideId "12959243"]
[BlackFideId "9915834"]
[WhiteElo "2390"]
[BlackElo "1839"]
[Result "0-1"]
[Round "02"]
[TimeControl "180+1"]
[Date "2021.07.21"]
[WhiteClock "0:00:29"]
[BlackClock "0:01:00"]

1. e4 {[%clk 0:03:00]}  e5 {[%clk 0:02:58]} 2. Nf3 {[%clk 0:03:00]}  Nc6 {[%clk 0:02:59]} 3. Bc4 {[%clk 0:03:00]}  Nf6 {[%clk 0:02:58]} 4. d3 {[%clk 0:03:00]}  h6 {[%clk 0:02:58]} 5. O-O {[%clk 0:03:00]}  d6 {[%clk 0:02:57]} 6. a4 {[%clk 0:02:59]}  g5 {[%clk 0:02:56]} 7. d4 {[%clk 0:02:57]}  g4 {[%clk 0:02:55]} 8. dxe5 {[%clk 0:02:57]}  gxf3 {[%clk 0:02:49]} 9. exf6 {[%clk 0:02:55]}  Qxf6 {[%clk 0:02:50]} 10. g3 {[%clk 0:02:46]}  Ne5 {[%clk 0:02:34]} 11. Bb3 {[%clk 0:02:38]}  h5 {[%clk 0:02:28]} 12. h4 {[%clk 0:02:26]}  Bh6 {[%clk 0:02:25]} 13. Nc3 {[%clk 0:02:13]}  c6 {[%clk 0:02:11]} 14. Qd4 {[%clk 0:01:55]}  Bxc1 {[%clk 0:02:02]} 15. Raxc1 {[%clk 0:01:56]}  Rg8 {[%clk 0:02:01]} 16. Kh1 {[%clk 0:01:48]}  Qg6 {[%clk 0:01:46]} 17. Nd1 {[%clk 0:01:31]}  Qg4 {[%clk 0:01:09]} 18. Ne3 {[%clk 0:01:30]}  Qh3+ {[%clk 0:01:09]} 19. Kg1 {[%clk 0:01:30]}  Ng4 {[%clk 0:01:06]} 20. Bxf7+ {[%clk 0:00:35]}  Kxf7 {[%clk 0:01:03]} 21. Qd1 {[%clk 0:00:29]}  Qh2# {[%clk 0:01:00]} 0-1


[Site "https://www.chess.com"]